fUSD/lending_fUSD_20240420
["ID","MTS","AMOUNT","RATE_DAILY","PERIOD"]
[322991806,1713577839943,-500.0,0.00015068,2]
[322991807,1713577839952,-500.0,0.00015068,2]
[322991809,1713577839961,-503.60587959,0.00015068,2]
[322991810,1713577839971,-617.64435575,0.00015068,2]
[322991811,1713577839986,-500.0,0.00015068,2]
[322991812,1713577839995,-500.0,0.00015068,2]
[322991813,1713577840004,-1042.53,0.00015068,2]
[322991814,1713577840014,-627.62,0.00015068,2]
[322991815,1713577840022,-500.0,0.00015068,2]
[322991816,1713577840032,-500.0,0.00015068,2]
[322991817,1713577840041,-614.68,0.00015068,2]
[322991818,1713577840051,-576.70066672,0.00015068,2]
[322991819,1713577840061,-500.0,0.00015068,2]
[322991820,1713577840072,-566.15,0.00015068,2]
[322991821,1713577840081,-861.66,0.00015068,2]
[322991822,1713577840090,-723.98,0.00015068,2]
[322991823,1713577840099,-500.0,0.00015068,2]
[322991824,1713577840108,-795.56,0.00015068,2]
[322991825,1713577840117,-500.0,0.00015068,2]
[322991826,1713577840126,-585.44,0.00015068,2]
[322991827,1713577840136,-864.76,0.00015068,2]
[322991828,1713577840145,-504.32,0.00015068,2]
[322991829,1713577840154,-500.0,0.00015068,2]
[322991830,1713577840163,-964.99,0.00015068,2]
[322991831,1713577840173,-502.65279458,0.00015068,2]
[322991832,1713577840182,-906.49,0.00015068,2]
[322991833,1713577840192,-500.0,0.00015068,2]
[322991834,1713577840202,-467.74163605,0.00015068,2]
[322991835,1713577840212,-500.0,0.00015068,2]
[322991836,1713577840224,-500.87870388,0.00015068,2]
[322991837,1713577840234,-500.0,0.00015068,2]
[322991838,1713577840243,-500.0,0.00015068,2]
[322991839,1713577840253,-500.0,0.00015068,2]
[322991840,1713577840262,-500.0,0.00015068,2]
[322991841,1713577840272,-547.95,0.00015068,2]
[322991842,1713577840281,-500.0,0.00015068,2]
[322991843,1713577840291,-562.0,0.00015068,2]
[322991844,1713577840302,-500.0,0.00015068,2]
[322991845,1713577840312,-1196.76,0.00015068,2]
[322991846,1713577840321,-500.0,0.00015068,2]
[322991847,1713577840331,-500.0,0.00015068,2]
[322991848,1713577840340,-561.45760016,0.00015068,2]
[322991849,1713577840351,-500.0,0.00015068,2]
[322991850,1713577840361,-503.01897638,0.00015068,2]
[322991851,1713577840370,-857.1,0.00015068,2]
[322991852,1713577840379,-758.83,0.00015068,2]
[322991853,1713577840388,-532.97,0.00015068,2]
[322991854,1713577840397,-500.0,0.00015068,2]
[322991855,1713577840406,-938.27,0.00015068,2]
[322991856,1713577840415,-649.31,0.00015068,2]
[322991857,1713577840424,-500.0,0.00015068,2]
[322991858,1713577840433,-500.0,0.00015068,2]
[322991859,1713577840442,-500.0,0.00015068,2]
[322991860,1713577840725,-1480.51,0.00015068,2]
[322991861,1713577840736,-1057.92,0.00015068,2]
[322991862,1713577840746,-829.02,0.00015068,2]
[322991863,1713577840755,-526.04311492,0.00015068,2]
[322991864,1713577840765,-500.0,0.00015068,2]
[322991865,1713577840774,-534.74897538,0.00015068,2]
[322991866,1713577840785,-502.35154635,0.00015068,2]
[322991867,1713577840795,-504.26,0.00015068,2]
[322991868,1713577840805,-500.0,0.00015068,2]
[322991869,1713577840814,-530.38,0.00015068,2]
[322991870,1713577840824,-528.8,0.00015068,2]
[322991871,1713577840834,-1132.85,0.00015068,2]
[322991872,1713577840843,-500.0,0.00015068,2]
[322991873,1713577840854,-1406.34,0.00015068,2]
[322991874,1713577840865,-500.0,0.00015068,2]
[322991875,1713577840874,-500.0,0.00015068,2]
[322991876,1713577840883,-500.0,0.00015068,2]
[322991877,1713577840892,-677.04,0.00015068,2]
[322991878,1713577840902,-553.34,0.00015068,2]
[322991879,1713577840911,-717.43,0.00015068,2]
[322991880,1713577840921,-1589.77,0.00015068,2]
[322991881,1713577840930,-500.0,0.00015068,2]
[322991882,1713577840939,-631.64,0.00015068,2]
[322991883,1713577840949,-500.0,0.00015068,2]
[322991884,1713577840959,-500.0,0.00015068,2]
[322991885,1713577840968,-500.0,0.00015068,2]
[322991886,1713577840979,-601.54,0.00015068,2]
[322991887,1713577840989,-500.0,0.00015068,2]
[322991888,1713577840998,-988.67,0.00015068,2]
[322991889,1713577841007,-1139.93,0.00015068,2]
[322991890,1713577841017,-510.76,0.00015068,2]
[322991891,1713577841026,-1022.09,0.00015068,2]
[322991892,1713577841035,-500.0,0.00015068,2]
[322991893,1713577841045,-574.43,0.00015068,2]
[322991894,1713577841053,-500.0,0.00015068,2]
[322991895,1713577841062,-904.72,0.00015068,2]
[322991896,1713577841072,-500.0,0.00015068,2]
[322991897,1713577841081,-502.16336588,0.00015068,2]
[322991898,1713577841089,-500.0,0.00015068,2]
[322991899,1713577841098,-678.73,0.00015068,2]
[322991900,1713577841107,-500.0,0.00015068,2]
[322991901,1713577841116,-527.17846309,0.00015068,2]
[322991902,1713577841125,-574.81,0.00015068,2]
[322991903,1713577841134,-1171.99,0.00015068,2]
[322991904,1713577841144,-907.36,0.00015068,2]
[322991905,1713577841153,-603.72238178,0.00015068,2]
[322991906,1713577841162,-1247.31,0.00015068,2]
[322991907,1713577841171,-659.08,0.00015068,2]
[322991908,1713577841181,-500.0,0.00015068,2]
[322991909,1713577841190,-500.0,0.00015068,2]
[322991910,1713577841201,-893.2,0.00015068,2]
[322991911,1713577841210,-1079.47,0.00015068,2]
[322991912,1713577841222,-708.28,0.00015068,2]
[322991913,1713577841232,-500.0,0.00015068,2]
[322991914,1713577841242,-629.89,0.00015068,2]
[322991915,1713577841252,-500.0,0.00015068,2]
[322991916,1713577841263,-547.72,0.00015068,2]
[322991917,1713577841272,-500.0,0.00015068,2]
[322991918,1713577841282,-663.96,0.00015068,2]
[322991919,1713577841293,-500.0,0.00015068,2]
[322991920,1713577841302,-500.0,0.00015068,2]
[322991921,1713577841312,-500.0,0.00015068,2]
[322991922,1713577841322,-1136.91,0.00015068,2]
[322991923,1713577841332,-856.38,0.00015068,2]
[322991924,1713577841341,-500.0,0.00015068,2]
[322991925,1713577841351,-501.10550481,0.00015068,2]
[322991926,1713577841362,-580.85,0.00015068,2]
[322991927,1713577841371,-1566.3,0.00015068,2]
[322991928,1713577841382,-995.1,0.00015068,2]
[322991929,1713577841392,-500.0,0.00015068,2]
[322991930,1713577841401,-500.0,0.00015068,2]
[322991931,1713577841410,-590.38944316,0.00015068,2]
[322991932,1713577841420,-548.91,0.00015068,2]
[322991933,1713577841429,-567.44,0.00015068,2]
[322991934,1713577841438,-723.26,0.00015068,2]
[322991935,1713577841447,-500.0,0.00015068,2]
[322991936,1713577841457,-1275.96,0.00015068,2]
[322991937,1713577841466,-500.0,0.00015068,2]
[322991938,1713577841476,-500.0,0.00015068,2]
[322991939,1713577841485,-500.0,0.00015068,2]
[322991940,1713577841495,-500.0,0.00015068,2]
[322991941,1713577841505,-503.56810544,0.00015068,2]
[322991942,1713577841515,-500.0,0.00015068,2]
[322991943,1713577841525,-500.49373384,0.00015068,2]
[322991944,1713577841535,-500.0,0.00015068,2]
[322991945,1713577841545,-2447.61,0.00015068,2]
[322991946,1713577841555,-500.0,0.00015068,2]
[322991947,1713577841564,-915.46,0.00015068,2]
[322991948,1713577841573,-500.0,0.00015068,2]
[322991949,1713577841584,-763.09,0.00015068,2]
[322991950,1713577841595,-500.0,0.00015068,2]
[322991951,1713577841605,-500.0,0.00015068,2]
[322991952,1713577841614,-500.0,0.00015068,2]
[322991953,1713577841624,-376.56854712,0.00015068,2]
[322991954,1713577841634,-500.0,0.00015068,2]
[322991955,1713577841643,-500.0,0.00015068,2]
[322991956,1713577841653,-500.0,0.00015068,2]
[322991957,1713577841664,-500.0,0.00015068,2]
[322991958,1713577841673,-2171.79,0.00015068,2]
[322991959,1713577841682,-500.0,0.00015068,2]
[322991960,1713577841692,-1115.82,0.00015068,2]
[322991961,1713577841701,-941.18,0.00015068,2]
[322991962,1713577841711,-653.01,0.00015068,2]
[322991963,1713577841720,-500.0,0.00015068,2]
[322991964,1713577841730,-650.75,0.00015068,2]
[322991965,1713577841740,-500.0,0.00015068,2]
[322991966,1713577841749,-500.0,0.00015068,2]
[322991967,1713577841758,-607.16,0.00015068,2]
[322991968,1713577841768,-500.0,0.00015068,2]
[322991969,1713577841777,-500.0,0.00015068,2]
[322991970,1713577841787,-502.51031607,0.00015068,2]
[322991971,1713577841796,-500.0,0.00015068,2]
[322991972,1713577841805,-1359.38,0.00015068,2]
[322991973,1713577841815,-550.57,0.00015068,2]
[322991974,1713577841824,-667.99,0.00015068,2]
[322991975,1713577841833,-1049.0,0.00015068,2]
[322991976,1713577841842,-500.0,0.00015068,2]
[322991977,1713577841851,-500.0,0.00015068,2]
[322991978,1713577841861,-500.0,0.00015068,2]
[322991979,1713577841870,-1207.97,0.00015068,2]
[322991980,1713577841879,-507.75,0.00015068,2]
[322991981,1713577841889,-806.35,0.00015068,2]
[322991982,1713577841898,-500.0,0.00015068,2]
[322991983,1713577841908,-500.0,0.00015068,2]
[322991984,1713577841917,-826.04,0.00015068,2]
[322991985,1713577841926,-1239.6,0.00015068,2]
[322991986,1713577841935,-1465.35,0.00015068,2]
[322991987,1713577841944,-500.0,0.00015068,2]
[322991988,1713577841953,-500.0,0.00015068,2]
[322991989,1713577841962,-500.0,0.00015068,2]
[322991990,1713577841973,-1116.87,0.00015068,2]
[322991991,1713577841983,-500.0,0.00015068,2]
[322991992,1713577841992,-500.0,0.00015068,2]
[322991993,1713577842002,-954.1,0.00015068,2]
[322991994,1713577842011,-650.12,0.00015068,2]
[322991995,1713577842020,-500.0,0.00015068,2]
[322991996,1713577842030,-1799.51,0.00015068,2]
[322991997,1713577842039,-500.0,0.00015068,2]
[322991998,1713577842048,-700.06,0.00015068,2]
[322991999,1713577842057,-500.0,0.00015068,2]
[322992000,1713577842067,-728.25,0.00015068,2]
[322992001,1713577842076,-1146.38,0.00015068,2]
[322992002,1713577842086,-684.63,0.00015068,2]
[322992003,1713577842096,-500.0,0.00015068,2]
[322992004,1713577842105,-500.0,0.00015068,2]
[322992005,1713577842115,-500.0,0.00015068,2]
[322992006,1713577842124,-500.0,0.00015068,2]
[322992007,1713577842134,-500.0,0.00015068,2]
[322992008,1713577842143,-500.0,0.00015068,2]
[322992009,1713577842152,-717.01,0.00015068,2]
[322992010,1713577842162,-500.0,0.00015068,2]
[322992011,1713577842172,-680.84,0.00015068,2]
[322992012,1713577842182,-1584.32,0.00015068,2]
[322992013,1713577842191,-565.14,0.00015068,2]
[322992014,1713577842201,-500.0,0.00015068,2]
[322992015,1713577842210,-500.0,0.00015068,2]
[322992016,1713577842220,-895.2,0.00015068,2]
[322992017,1713577842236,-500.0,0.00015068,2]
[322992018,1713577842258,-605.89,0.00015068,2]
[322992019,1713577842270,-765.17,0.00015068,2]
[322992020,1713577842280,-751.05,0.00015068,2]
[322992021,1713577842289,-502.50938819,0.00015068,2]
[322992022,1713577842299,-915.01,0.00015068,2]
[322992023,1713577842308,-500.0,0.00015068,2]
[322992024,1713577842318,-500.0,0.00015068,2]
[322992025,1713577842327,-502.91367016,0.00015068,2]
[322992026,1713577842337,-500.0,0.00015068,2]
[322992027,1713577842346,-517.6418802,0.00015068,2]
[322992028,1713577842356,-2262.81,0.00015068,2]
[322992029,1713577842365,-500.0,0.00015068,2]
[322992030,1713577842375,-1855.98,0.00015068,2]
[322992031,1713577842384,-753.98,0.00015068,2]
[322992032,1713577842393,-500.0,0.00015068,2]
[322992033,1713577842404,-500.0,0.00015068,2]
[322992034,1713577842413,-1103.68,0.00015068,2]
[322992035,1713577842422,-500.0,0.00015068,2]
[322992036,1713577842431,-1210.75,0.00015068,2]
[322992037,1713577842440,-1017.91,0.00015068,2]
[322992038,1713577842450,-500.0,0.00015068,2]
[322992039,1713577842459,-1203.14,0.00015068,2]
[322992040,1713577842468,-1177.15,0.00015068,2]
[322992041,1713577842481,-1551.26,0.00015068,2]
[322992042,1713577842490,-727.02,0.00015068,2]
[322992043,1713577842499,-500.0,0.00015068,2]
[322992044,1713577842509,-500.0,0.00015068,2]
[322992045,1713577842519,-500.0,0.00015068,2]
[322992046,1713577842529,-1200.93,0.00015068,2]
[322992047,1713577842538,-1086.96,0.00015068,2]
[322992048,1713577842547,-646.01,0.00015068,2]
[322992049,1713577842556,-739.14,0.00015068,2]
[322992050,1713577842565,-500.0,0.00015068,2]
[322992051,1713577842575,-1105.53,0.00015068,2]
[322992052,1713577842585,-885.05,0.00015068,2]
[322992053,1713577842597,-1047.29,0.00015068,2]
[322992054,1713577842606,-2281.18,0.00015068,2]
[322992055,1713577842615,-500.0,0.00015068,2]
[322992056,1713577842624,-1130.62,0.00015068,2]
[322992057,1713577842635,-1082.63,0.00015068,2]
[322992058,1713577842644,-748.76,0.00015068,2]
[322992059,1713577842653,-2403.29,0.00015068,2]
[322992060,1713577842662,-1257.44,0.00015068,2]
[322992061,1713577842672,-501.50939995,0.00015068,2]
[322992062,1713577842681,-500.0,0.00015068,2]
[322992063,1713577842691,-500.0,0.00015068,2]
[322992064,1713577842700,-1432.59,0.00015068,2]
[322992065,1713577842709,-500.0,0.00015068,2]
[322992066,1713577842720,-500.0,0.00015068,2]
[322992067,1713577842731,-500.0,0.00015068,2]
[322992068,1713577842745,-1443.43,0.00015068,2]
[322992069,1713577842756,-500.0,0.00015068,2]
[322992070,1713577842766,-603.6,0.00015068,2]
[322992071,1713577842776,-500.0,0.00015068,2]
[322992072,1713577842786,-500.0,0.00015068,2]
[322992073,1713577842796,-500.0,0.00015068,2]
[322992074,1713577842805,-851.84,0.00015068,2]
[322992075,1713577842815,-515.54,0.00015068,2]
[322992076,1713577842825,-500.0,0.00015068,2]
[322992077,1713577842834,-1204.11,0.00015068,2]
[322992079,1713577842843,-500.0,0.00015068,2]
[322992081,1713577842853,-833.59,0.00015068,2]
[322992082,1713577842862,-1037.92,0.00015068,2]
[322992083,1713577842871,-500.0,0.00015068,2]
[322992084,1713577842881,-1257.43,0.00015068,2]
[322992085,1713577842890,-500.0,0.00015068,2]
[322992087,1713577842899,-500.0,0.00015068,2]
[322992089,1713577842909,-2602.15,0.00015068,2]
[322992091,1713577842918,-634.16,0.00015068,2]
[322992092,1713577842927,-294.1,0.00015068,2]
[322992093,1713577842937,-500.0,0.00015068,2]
[322992095,1713577842947,-501.71913572,0.00015068,2]
[322992096,1713577842956,-500.0,0.00015068,2]
[322992097,1713577842966,-500.0,0.00015068,2]
[322992098,1713577842978,-500.0,0.00015068,2]
[322992099,1713577842988,-865.63,0.00015068,2]
[322992101,1713577842998,-898.91,0.00015068,2]
[322992103,1713577843007,-1359.74,0.00015068,2]
[322992104,1713577843016,-1139.19,0.00015068,2]
[322992105,1713577843026,-500.0,0.00015068,2]
[322992106,1713577843035,-500.0,0.00015068,2]
[322992107,1713577843045,-2000.54,0.00015068,2]
[322992108,1713577843055,-1707.75,0.00015068,2]
[322992109,1713577843066,-500.0,0.00015068,2]
[322992110,1713577843076,-1437.71,0.00015068,2]
[322992111,1713577843086,-1670.8,0.00015068,2]
[322992112,1713577843097,-500.0,0.00015068,2]
[322992113,1713577843107,-500.0,0.00015068,2]
[322992114,1713577843117,-501.91356035,0.00015068,2]
[322992115,1713577843127,-503.56368337,0.00015068,2]
[322992116,1713577843137,-500.0,0.00015068,2]
[322992117,1713577843147,-830.54,0.00015068,2]
[322992118,1713577843156,-913.27,0.00015068,2]
[322992119,1713577843165,-549.38,0.00015068,2]
[322992120,1713577843174,-500.0,0.00015068,2]
[322992121,1713577843184,-817.02,0.00015068,2]
[322992122,1713577843193,-500.0,0.00015068,2]
[322992123,1713577843202,-780.53,0.00015068,2]
[322992124,1713577843212,-500.0,0.00015068,2]
[322992125,1713577843222,-500.0,0.00015068,2]
[322992126,1713577843231,-500.0,0.00015068,2]
[322992127,1713577843241,-825.85,0.00015068,2]
[322992128,1713577843250,-500.0,0.00015068,2]
[322992129,1713577843259,-500.0,0.00015068,2]
[322992130,1713577843269,-1911.01,0.00015068,2]
[322992131,1713577843278,-515.73,0.00015068,2]
[322992132,1713577843287,-500.0,0.00015068,2]
[322992133,1713577843296,-657.06,0.00015068,2]
[322992134,1713577843305,-967.45,0.00015068,2]
[322992135,1713577843315,-500.0,0.00015068,2]
[322992136,1713577843324,-500.0,0.00015068,2]
[322992137,1713577843333,-500.0,0.00015068,2]
[322992138,1713577843342,-500.0,0.00015068,2]
[322992139,1713577843351,-500.0,0.00015068,2]
[322992140,1713577843360,-500.0,0.00015068,2]
[322992141,1713577843369,-653.17,0.00015068,2]
[322992142,1713577843379,-597.35,0.00015068,2]
[322992143,1713577843388,-948.36,0.00015068,2]
[322992144,1713577843397,-500.0,0.00015068,2]
[322992145,1713577843406,-1688.13,0.00015068,2]
[322992146,1713577843415,-500.0,0.00015068,2]
[322992147,1713577843425,-500.0,0.00015068,2]
[322992148,1713577843434,-500.0,0.00015068,2]
[322992149,1713577843443,-500.0,0.00015068,2]
[322992150,1713577843452,-600.83,0.00015068,2]
[322992151,1713577843461,-500.0,0.00015068,2]
[322992152,1713577843470,-1087.47,0.00015068,2]
[322992153,1713577843482,-750.53,0.00015068,2]
[322992154,1713577843491,-727.62,0.00015068,2]
[322992155,1713577843501,-500.0,0.00015068,2]
[322992156,1713577843511,-983.28,0.00015068,2]
[322992157,1713577843520,-500.0,0.00015068,2]
[322992158,1713577843529,-3189.04,0.00015068,2]
[322992159,1713577843539,-500.0,0.00015068,2]
[322992160,1713577843548,-623.23,0.00015068,2]
[322992161,1713577843557,-1403.18,0.00015068,2]
[322992162,1713577843566,-500.0,0.00015068,2]
[322992163,1713577843575,-500.0,0.00015068,2]
[322992164,1713577843587,-502.9013306,0.00015068,2]
[322992165,1713577843595,-1168.58,0.00015068,2]
[322992166,1713577843604,-500.0,0.00015068,2]
[322992167,1713577843613,-500.0,0.00015068,2]
[322992168,1713577843623,-500.0,0.00015068,2]
[322992169,1713577843632,-1022.68,0.00015068,2]
[322992170,1713577843641,-1366.89,0.00015068,2]
[322992171,1713577843650,-500.0,0.00015068,2]
[322992172,1713577843660,-500.0,0.00015068,2]
[322992173,1713577843670,-785.3,0.00015068,2]
[322992174,1713577843679,-500.0,0.00015068,2]
[322992175,1713577843688,-905.77,0.00015068,2]
[322992176,1713577843697,-500.0,0.00015068,2]
[322992177,1713577843706,-500.0,0.00015068,2]
[322992178,1713577843715,-522.27,0.00015068,2]
[322992179,1713577843724,-2215.09,0.00015068,2]
[322992180,1713577843733,-845.3,0.00015068,2]
[322992181,1713577843742,-500.0,0.00015068,2]
[322992182,1713577843751,-2168.1,0.00015068,2]
[322992183,1713577843760,-500.0,0.00015068,2]
[322992184,1713577843769,-500.0,0.00015068,2]
[322992185,1713577843778,-500.0,0.00015068,2]
[322992186,1713577843787,-1379.39,0.00015068,2]
[322992187,1713577843796,-500.0,0.00015068,2]
[322992188,1713577843806,-500.0,0.00015068,2]
[322992189,1713577843815,-500.0,0.00015068,2]
[322992190,1713577843824,-582.11,0.00015068,2]
[322992191,1713577843833,-534.34,0.00015068,2]
[322992192,1713577843842,-1941.91,0.00015068,2]
[322992193,1713577843851,-788.02,0.00015068,2]
[322992194,1713577843860,-500.0,0.00015068,2]
[322992195,1713577843869,-500.0,0.00015068,2]
[322992196,1713577843879,-855.59,0.00015068,2]
[322992197,1713577843888,-2630.37,0.00015068,2]
[322992198,1713577843897,-500.0,0.00015068,2]
[322992199,1713577843906,-498.58247638,0.00015068,2]
[322992200,1713577843915,-500.0,0.00015068,2]
[322992201,1713577843924,-543.49,0.00015068,2]
[322992202,1713577843933,-1584.15,0.00015068,2]
[322992203,1713577843942,-1376.43,0.00015068,2]
[322992204,1713577843951,-2270.82,0.00015068,2]
[322992205,1713577843960,-500.0,0.00015068,2]
[322992206,1713577843969,-500.0,0.00015068,2]
[322992207,1713577843981,-3639.63,0.00015068,2]
[322992208,1713577843990,-1999.01,0.00015068,2]
[322992209,1713577843999,-500.0,0.00015068,2]
[322992210,1713577844008,-589.84,0.00015068,2]
[322992211,1713577844017,-500.0,0.00015068,2]
[322992212,1713577844026,-500.0,0.00015068,2]
[322992213,1713577844035,-500.0,0.00015068,2]
[322992214,1713577844044,-500.0,0.00015068,2]
[322992215,1713577844053,-1102.39,0.00015068,2]
[322992216,1713577844062,-585.16,0.00015068,2]
[322992217,1713577844071,-2976.9,0.00015068,2]
[322992218,1713577844080,-500.0,0.00015068,2]
[322992219,1713577844089,-551.62,0.00015068,2]
[322992220,1713577844099,-888.9,0.00015068,2]
[322992221,1713577844108,-500.0,0.00015068,2]
[322992222,1713577844117,-500.0,0.00015068,2]
[322992223,1713577844126,-500.0,0.00015068,2]
[322992224,1713577844135,-18515.68,0.00015068,2]
[322992225,1713577844144,-1051.22,0.00015068,2]
[322992226,1713577844154,-500.0,0.00015068,2]
[322992227,1713577844163,-1471.06,0.00015068,2]
[322992228,1713577844172,-1870.11,0.00015068,2]
[322992229,1713577844182,-940.75,0.00015068,2]
[322992230,1713577844191,-1188.98,0.00015068,2]
[322992231,1713577844200,-959.69,0.00015068,2]
[322992232,1713577844209,-500.0,0.00015068,2]
[322992233,1713577844219,-500.0,0.00015068,2]
[322992234,1713577844230,-511.74,0.00015068,2]
[322992235,1713577844239,-500.0,0.00015068,2]
[322992236,1713577844248,-500.0,0.00015068,2]
[322992237,1713577844257,-1827.13,0.00015068,2]
[322992238,1713577844265,-500.0,0.00015068,2]
[322992239,1713577844274,-503.56113049,0.00015068,2]
[322992240,1713577844283,-926.09,0.00015068,2]
[322992241,1713577844292,-857.24,0.00015068,2]
[322992242,1713577844301,-500.0,0.00015068,2]
[322992243,1713577844311,-552.07,0.00015068,2]
[322992244,1713577844320,-500.0,0.00015068,2]
[322992245,1713577844329,-1814.86,0.00015068,2]
[322992246,1713577844338,-500.0,0.00015068,2]
[322992247,1713577844347,-2147.94,0.00015068,2]
[322992248,1713577844356,-500.0,0.00015068,2]
[322992249,1713577844365,-2049.88,0.00015068,2]
[322992250,1713577844374,-500.39845681,0.00015068,2]
[322992251,1713577844383,-1356.36,0.00015068,2]
[322992252,1713577844391,-1893.42,0.00015068,2]
[322992253,1713577844401,-1010.14,0.00015068,2]
[322992254,1713577844410,-500.0,0.00015068,2]
[322992255,1713577844419,-683.98,0.00015068,2]
[322992256,1713577844427,-2243.97,0.00015068,2]
[322992257,1713577844436,-1051.83,0.00015068,2]
[322992258,1713577844445,-500.0,0.00015068,2]
[322992259,1713577844454,-8223.4,0.00015068,2]
[322992260,1713577844463,-500.0,0.00015068,2]
[322992261,1713577844474,-500.0,0.00015068,2]
[322992262,1713577844483,-2613.67,0.00015068,2]
[322992263,1713577844492,-4662.09,0.00015068,2]
[322992264,1713577844501,-2789.51,0.00015068,2]
[322992265,1713577844511,-500.0,0.00015068,2]
[322992266,1713577844521,-500.0,0.00015068,2]
[322992267,1713577844530,-5346.73,0.00015068,2]
[322992268,1713577844539,-1549.59,0.00015068,2]
[322992269,1713577844548,-2150.62,0.00015068,2]
[322992270,1713577844557,-1179.02,0.00015068,2]
[322992271,1713577844567,-522.26,0.00015068,2]
[322992272,1713577844576,-500.0,0.00015068,2]
[322992273,1713577844594,-500.0,0.00015068,2]
[322992274,1713577844604,-500.0,0.00015068,2]
[322992275,1713577844613,-33120.26,0.00015068,2]
[322992276,1713577844623,-3302.06,0.00015068,2]
[322992277,1713577844634,-500.0,0.00015068,2]
[322992278,1713577844643,-11876.37,0.00015068,2]
[322992279,1713577844653,-843.16,0.00015068,2]
[322992280,1713577844664,-31126.82,0.00015068,2]
[322992281,1713577844675,-500.0,0.00015068,2]
[322992282,1713577844685,-500.0,0.00015068,2]
[322992283,1713577844934,-500.0,0.00015068,2]
[322992284,1713577844945,-778.06,0.00015068,2]
[322992285,1713577844955,-584.53829972,0.00015068,2]
[322992286,1713577844966,-500.0,0.00015068,2]
[322992287,1713577844977,-609.14,0.00015068,2]
[322992288,1713577844988,-500.0,0.00015068,2]
[322992289,1713577844997,-4366.82,0.00015068,2]
[322992290,1713577845007,-500.0,0.00015068,2]
[322992291,1713577845019,-1915.04,0.00015068,2]
[322992292,1713577845029,-2977.66,0.00015068,2]
[322992293,1713577845038,-500.0,0.00015068,2]
[322992294,1713577845047,-500.0,0.00015068,2]
[322992295,1713577845056,-500.0,0.00015068,2]
[322992296,1713577845066,-3929.26,0.00015068,2]
[322992297,1713577845076,-647.6,0.00015068,2]
[322992298,1713577845087,-2328.98,0.00015068,2]
[322992299,1713577845096,-500.0,0.00015068,2]
[322992300,1713577845105,-500.0,0.00015068,2]
[322992301,1713577845114,-1155.6,0.00015068,2]
[322992302,1713577845123,-500.0,0.00015068,2]
[322992303,1713577845132,-2089.13,0.00015068,2]
[322992304,1713577845141,-500.0,0.00015068,2]
[322992305,1713577845150,-798.2,0.00015068,2]
[322992306,1713577845159,-2776.26,0.00015068,2]
[322992307,1713577845169,-500.0,0.00015068,2]
[322992308,1713577845179,-580.59,0.00015068,2]
[322992309,1713577845188,-502.40842504,0.00015068,2]
[322992310,1713577845197,-500.0,0.00015068,2]
[322992311,1713577845206,-500.0,0.00015068,2]
[322992312,1713577845215,-500.0,0.00015068,2]
[322992313,1713577845224,-500.0,0.00015068,2]
[322992314,1713577845233,-1762.69,0.00015068,2]